Service area,Service sub division,TVBC Service,Expense type,Detailed expense type,TVBC account code,Date Paid,Transaction Reference, Nett Value ,Supplier Name
Central Services,Corporate & Democratic Core,Corporate & Democratic,Supplies & Services,Services,Seminars,10/09/2020,310147,-700,Haymarket Media Group Ltd
Environmental & Regulatory,Street Cleansing (not chargeable to Highways),Environmental,Supplies & Services,Miscellaneous Expenses,Hazardous / Fly Tipped Waste,03/09/2020,310899,-575,Bkp Waste & Recycling Ltd
Central Services to the Public,Management & Support Services,Premises & Asset Management,Premises related Expenditure,Energy Costs,Gas,17/09/2020,313196,430.42,Total Gas & Power Ltd
Environmental & Regulatory,Waste management,Environmental,Supplies & Services,Services,Training Courses,24/09/2020,313634,443.75,By-Pass Driver Training
Environmental & Regulatory,Waste management,Environmental,Transport Related Expenditure,Direct Transport Costs,Repair Materials,24/09/2020,313492,445.83,Dennis Eagle Ltd
Environmental & Regulatory,Regulatory Services,Housing and Environmental Health ,Supplies & Services,Services,Professional Fees,10/09/2020,311813,540,Access Independent Ltd
Environmental & Regulatory,"Cemetery, Cremation and Mortuary Services",Community and Leisure ,Premises related Expenditure,Grounds Maintenance Costs,Gm - Additional Works,17/09/2020,312835,450,Thorverton Stone Company Ltd
Planning & Development,Building Control,Planning & Building,Transport Related Expenditure,Contract Hire and Operating Leases,Officer lease cars,10/09/2020,312818,541.03,Arval Uk Ltd
Cultural & Related,Culture & Heritage,Premises & Asset Management,Premises related Expenditure,Water Services,Water And Sewerage Charges,17/09/2020,313065,541.94,Castle Water Limited
Cultural & Related,Open Spaces,Environmental,Transport Related Expenditure,Direct Transport Costs,External Garages,10/09/2020,312536,300,A T H Machinery Ltd
Cultural & Related,Open Spaces,Environmental,Transport Related Expenditure,Direct Transport Costs,Repair Materials,10/09/2020,312536,158.23,A T H Machinery Ltd
Planning & Development,Community Development,Planning Policy & Economic Development ,Supplies & Services,Grants & Subscriptions,Contributions,10/09/2020,312230,550,Hampshire County Council
Cultural & Related,Regulatory Services,Community and Leisure ,Third Party Payments,Private contractors,Main Contractor Costs,03/09/2020,312363,557.5,Environment Agency (Ea Payments)
Central Services to the Public,Management & Support Services,Finance,Supplies & Services,"Printing, Stationery & General Office Expenses",Postage Costs,10/09/2020,312520,466.44,Whistl Uk Ltd
Central Services to the Public,Management & Support Services,IT,Supplies & Services,Communications & Computing,Land Line Telephone Charges,17/09/2020,312814,467.46,Gamma
Cultural & Related,Open Spaces,Environmental,Supplies & Services,Services,Training Courses,24/09/2020,313644,470,G A R Training Services Ltd
External Trading Accounts,Property Investments,Premises & Asset Management,Premises related Expenditure,Grounds Maintenance Costs,Grounds Maintenance Contracts,24/09/2020,313738,473.19,Landmarks Sustainability Ltd
Cultural & Related,Culture & Heritage,Community and Leisure ,Supplies & Services,Services,Project Consultancy - Policy,10/09/2020,312707,575,The Artroom
Environmental & Regulatory,"Cemetery, Cremation and Mortuary Services",Community and Leisure ,Premises related Expenditure,Repairs Alterations & Maintenance of Buildings,Estates premises costs - AMP,17/09/2020,313087,480,Andover Glass Works Ltd
Environmental & Regulatory,Street Cleansing (not chargeable to Highways),Environmental,Supplies & Services,"Equipment, Furniture & Materials",Purchase Equip + Materials,17/09/2020,312237,480,Sweeperhire
Cultural & Related,Culture & Heritage,Community and Leisure ,Premises related Expenditure,Energy Costs,Electricity,10/09/2020,312702,289.38,Sparsholt College Hampshire
Cultural & Related,Culture & Heritage,Community and Leisure ,Premises related Expenditure,Water Services,Water And Sewerage Charges,10/09/2020,312702,254.34,Sparsholt College Hampshire
Central Services to the Public,Management & Support Services,Premises & Asset Management,Third Party Payments,Other Establishments,Private Contractors,24/09/2020,313740,504.76,Spear Electrical Limited
Central Services to the Public,Management & Support Services,Environmental,Transport Related Expenditure,Direct Transport Costs,Workshop Consumables,10/09/2020,312335,525,Boc  Ltd
Cultural & Related,Open Spaces,Environmental,Transport Related Expenditure,Direct Transport Costs,Petrol,24/09/2020,313647,529.93,Fuel Card Services Ltd
Central Services to the Public,Management & Support Services,Premises & Asset Management,Premises related Expenditure,Energy Costs,Gas,24/09/2020,313506,615.32,Total Gas & Power Ltd
Cultural & Related,Open Spaces,Environmental,Supplies & Services,Communications & Computing,Telephone Tracking System,17/09/2020,313038,545,Dashwitness Ltd T/A Fleet Witness
Environmental & Regulatory,Waste management,Environmental,Employees,Indirect Employee Expenses,Agency Staff - Waged Posts,10/09/2020,312573,549.41,Employment Partners Ltd
Central Services to the Public,Management & Support Services,IT,Supplies & Services,Communications & Computing,Telephone System Maintenance,10/09/2020,312813,550,Nuvola Distribution Ltd
"Highways, Roads & Transport",Parking Services,Plan Pol & Transport,Premises related Expenditure,Repairs Alterations & Maintenance of Buildings,Estates premises costs - AMP,10/09/2020,312345,510,Coupe Line
Environmental & Regulatory,Waste management,Environmental,Transport Related Expenditure,Direct Transport Costs,External Garages,10/09/2020,312546,352.13,Dennis Eagle Ltd
Environmental & Regulatory,Waste management,Environmental,Transport Related Expenditure,Direct Transport Costs,Repair Materials,10/09/2020,312546,201.79,Dennis Eagle Ltd
Central Services to the Public,Local Tax Collection,Revenues,Supplies & Services,"Equipment, Furniture & Materials",Equipment Lease Rentals,10/09/2020,312553,55.42,Quadient Finance Uk Ltd
Central Services to the Public,Local Tax Collection,Revenues,Supplies & Services,"Equipment, Furniture & Materials",Equipment Lease Rentals,10/09/2020,312553,221.69,Quadient Finance Uk Ltd
Housing Services,Housing Benefits ,Revenues,Supplies & Services,"Equipment, Furniture & Materials",Equipment Lease Rentals,10/09/2020,312553,138.56,Quadient Finance Uk Ltd
Central Services to the Public,Local Tax Collection,Revenues,Supplies & Services,"Equipment, Furniture & Materials",Equipment Lease Rentals,10/09/2020,312553,138.56,Quadient Finance Uk Ltd
Environmental & Regulatory,Waste & Recycling Management,Environmental,Supplies & Services,Miscellaneous Expenses,Hazardous / Fly Tipped Waste,03/09/2020,312054,555,Bkp Waste & Recycling Ltd
Cultural & Related,Open Spaces,Environmental,Supplies & Services,Miscellaneous Expenses,Waste Collection,03/09/2020,311413,563.34,Raymond Brown Waste Solutions
Cultural & Related,Open Spaces,Environmental,Transport Related Expenditure,Direct Transport Costs,External Garages,10/09/2020,312535,570,Personal Data - Data Protection Act 1998
Cultural & Related,Culture & Heritage,Community and Leisure ,Supplies & Services,Miscellaneous Expenses,Booking Of Acts,24/09/2020,313677,576.67,The Pantaloons
Environmental & Regulatory,Waste management,Environmental,Transport Related Expenditure,Direct Transport Costs,Repair Materials,10/09/2020,312519,38.94,Dennis Eagle Ltd
Environmental & Regulatory,Waste management,Environmental,Transport Related Expenditure,Direct Transport Costs,Repair Materials,10/09/2020,312519,547.97,Dennis Eagle Ltd
Environmental & Regulatory,Street Cleansing (not chargeable to Highways),Environmental,Supplies & Services,Communications & Computing,Telephone Tracking System,17/09/2020,313037,149.97,Dashwitness Ltd T/A Fleet Witness
Environmental & Regulatory,Waste management,Environmental,Supplies & Services,Communications & Computing,Telephone Tracking System,17/09/2020,313037,449.91,Dashwitness Ltd T/A Fleet Witness
Cultural & Related,Culture & Heritage,Community and Leisure ,Premises related Expenditure,Energy Costs,Electricity,10/09/2020,312801,391.52,Sparsholt College Hampshire
Cultural & Related,Culture & Heritage,Community and Leisure ,Premises related Expenditure,Water Services,Water And Sewerage Charges,10/09/2020,312801,254.34,Sparsholt College Hampshire
Environmental & Regulatory,Waste management,Environmental,Transport Related Expenditure,Direct Transport Costs,Repair Materials,17/09/2020,313076,603.68,Dennis Eagle Ltd
Environmental & Regulatory,Waste management,Environmental,Transport Related Expenditure,Direct Transport Costs,Repair Materials,17/09/2020,313174,607.04,Dennis Eagle Ltd
External Trading Accounts,Business Parks,Premises & Asset Management,Supplies & Services,Miscellaneous Expenses,Waste Collection,10/09/2020,312761,608.16,Basingstoke Skip Hire & Sthrn Waste Mgt Ltd
Cultural & Related,Culture & Heritage,Premises & Asset Management,Supplies & Services,Miscellaneous Expenses,Waste Collection,17/09/2020,313091,178.87,Suez Recycling And Recovery Uk Ltd
Central Services to the Public,Management & Support Services,Premises & Asset Management,Supplies & Services,Miscellaneous Expenses,Waste Collection,17/09/2020,313091,429.38,Suez Recycling And Recovery Uk Ltd
Central Services to the Public,Management & Support Services,Estates and Economic Development ,Third Party Payments,Private contractors,Main Contractor Costs,03/09/2020,312064,616,Evac Chair International Ltd
Environmental & Regulatory,Waste & Recycling Management,Environmental,Employees,Indirect Employee Expenses,Agency Staff - Waged Posts,17/09/2020,313214,142.4,Golden Orb Solutions
Environmental & Regulatory,Waste management,Environmental,Employees,Indirect Employee Expenses,Agency Staff - Waged Posts,17/09/2020,313214,475.2,Golden Orb Solutions
Central Services to the Public,Management & Support Services,Premises & Asset Management,Supplies & Services,Miscellaneous Expenses,Medical Fees,17/09/2020,313260,19,University Hospital Soton Nhs Foundation Trst
Central Services to the Public,Management & Support Services,IT,Supplies & Services,Miscellaneous Expenses,Medical Fees,17/09/2020,313260,19,University Hospital Soton Nhs Foundation Trst
Planning & Development,Development Control,Planning & Building,Supplies & Services,Miscellaneous Expenses,Medical Fees,17/09/2020,313260,233,University Hospital Soton Nhs Foundation Trst
Cultural & Related,Open Spaces,Environmental,Supplies & Services,Miscellaneous Expenses,Medical Fees,17/09/2020,313260,233,University Hospital Soton Nhs Foundation Trst
Environmental & Regulatory,Waste management,Environmental,Supplies & Services,Miscellaneous Expenses,Medical Fees,17/09/2020,313260,233,University Hospital Soton Nhs Foundation Trst
Central Services to the Public,Local Tax Collection,Revenues,Supplies & Services,Services,Training Courses,02/09/2020,311291,625,Airey Consultancy Services Ltd
"Highways, Roads & Transport",Public Transport,Plan Pol & Transport,Third Party Payments,Transport Operators in Respect of Concessionary Fares,Voluntary Orgs Reimbursement,24/09/2020,313748,750,Thorngate Village Care Group
Planning & Development,Economic Development,Planning Policy & Economic Development ,Supplies & Services,Grants & Subscriptions,Grants,10/09/2020,312840,750,Feathered Skies
Planning & Development,Economic Development,Planning Policy & Economic Development ,Supplies & Services,Grants & Subscriptions,Grants,30/09/2020,314137,750,My Best Friend Andover
Planning & Development,Economic Development,Planning Policy & Economic Development ,Supplies & Services,Grants & Subscriptions,Grants,30/09/2020,314139,750,Hornbuckle Electrical Services
Environmental & Regulatory,Waste management,Environmental,Employees,Indirect Employee Expenses,Agency Staff - Waged Posts,03/09/2020,312147,638.56,Golden Orb Solutions
Cultural & Related,Open Spaces,Environmental,Transport Related Expenditure,Direct Transport Costs,Licences,10/09/2020,309877,640,Sparks Commercial Services Ltd
Central Services to the Public,Management & Support Services,IT,Supplies & Services,"Equipment, Furniture & Materials",IT Supp and Serv AMP,17/09/2020,312148,645.16,Bt Business Direct
Central Services to the Public,Management & Support Services,Housing and Environmental Health ,Supplies & Services,"Equipment, Furniture & Materials",Purchase Equip + Materials,17/09/2020,313168,649.04,Portsdown Office Ltd
"Highways, Roads & Transport",Parking Services,Plan Pol & Transport,Supplies & Services,Services,Professional Fees,10/09/2020,312337,650.2,Advam (Uk) Limited
Cultural & Related,Regulatory Services,Community and Leisure ,Third Party Payments,Private contractors,Main Contractor Costs,10/09/2020,312512,655,Austin Foot Ecology
Environmental & Regulatory,Regulatory Services,Housing and Environmental Health ,Supplies & Services,Grants and subscriptions,Capital Grants,03/09/2020,312268,789.83,Andover Glass Works Ltd
Environmental & Regulatory,Waste management,Environmental,Transport Related Expenditure,Direct Transport Costs,Repair Materials,10/09/2020,311820,665.07,Dennis Eagle Ltd
Central Services to the Public,Management & Support Services,IT,Supplies & Services,"Equipment, Furniture & Materials",IT Supp and Serv AMP,24/09/2020,313710,668.44,Exampleit Ltd
Planning & Development,Development Control,Planning & Building,Supplies & Services,Communications & Computing,Computer Hardware,24/09/2020,313711,668.44,Exampleit Ltd
Cultural & Related,Open Spaces,Environmental,Third Party Payments,Other Establishments,Private Contractors,24/09/2020,313746,802.83,Ivan Gibson Agricultural Contractor
Central Services to the Public,Management & Support Services,Premises & Asset Management,Premises related Expenditure,Water Services,Water And Sewerage Charges,03/09/2020,312185,827.7,Castle Water Limited
Cultural & Related,Open Spaces,Environmental,Transport Related Expenditure,Direct Transport Costs,External Garages,10/09/2020,311814,490,T H White Ltd
Cultural & Related,Open Spaces,Environmental,Transport Related Expenditure,Direct Transport Costs,Repair Materials,10/09/2020,311814,210.13,T H White Ltd
Cultural & Related,Open Spaces,Environmental,Supplies & Services,"Equipment, Furniture & Materials",Purchase Equip + Materials,24/09/2020,312062,717.66,Vitax Ltd
Environmental & Regulatory,Waste management,Environmental,Employees,Indirect Employee Expenses,Agency Staff - Waged Posts,17/09/2020,313215,718.23,Active Staff Ltd
Environmental & Regulatory,"Cemetery, Cremation and Mortuary Services",Community and Leisure ,Supplies & Services,Miscellaneous Expenses,National Assist Act Burials,23/09/2020,313077,862,Dunnings Funeral Services
Cultural & Related,Open Spaces,Environmental,Transport Related Expenditure,Direct Transport Costs,External Garages,10/09/2020,311805,329,T H White Ltd
Cultural & Related,Open Spaces,Environmental,Transport Related Expenditure,Direct Transport Costs,Repair Materials,10/09/2020,311805,390.81,T H White Ltd
Central Services to the Public,Emergency Planning,Corporate & Democratic,Supplies & Services,Miscellaneous Expenses,Emergency Planning Costs,24/09/2020,313204,886.36,Hampshire County Council
External Trading Accounts,Business Parks,Premises & Asset Management,Supplies & Services,Services,Professional Fees,10/09/2020,311808,750,Dentons Ukmea Llp
Central Services,Corporate & Democratic Core,Corporate & Democratic,Supplies & Services,Services,Professional Advice,24/09/2020,313093,750,Dc Commercial Solicitors
Environmental & Regulatory,Waste management,Environmental,Transport Related Expenditure,Direct Transport Costs,Repair Materials,24/09/2020,313667,687.77,Dennis Eagle Ltd
Environmental & Regulatory,Waste management,Environmental,Transport Related Expenditure,Direct Transport Costs,Repair Materials,24/09/2020,313667,66.54,Dennis Eagle Ltd
Environmental & Regulatory,Waste management,Environmental,Transport Related Expenditure,Direct Transport Costs,Repair Materials,10/09/2020,312717,760.73,Dennis Eagle Ltd
Cultural & Related,Open Spaces,Community and Leisure ,Third Party Payments,Private contractors,Main Contractor Costs,17/09/2020,313033,764.55,Sure Green Ltd
Central Services to the Public,Management & Support Services,Premises & Asset Management,Supplies & Services,Communications & Computing,Telephone Tracking System,10/09/2020,312199,48,Teletrac Navman (Uk) Ltd
Environmental & Regulatory,Regulatory Services,Housing and Environmental Health ,Supplies & Services,Communications & Computing,Telephone Tracking System,10/09/2020,312199,6,Teletrac Navman (Uk) Ltd
Environmental & Regulatory,Regulatory Services,Housing and Environmental Health ,Supplies & Services,Communications & Computing,Telephone Tracking System,10/09/2020,312199,12,Teletrac Navman (Uk) Ltd
Cultural & Related,Open Spaces,Community and Leisure ,Supplies & Services,Communications & Computing,Telephone Tracking System,10/09/2020,312199,6,Teletrac Navman (Uk) Ltd
Cultural & Related,Open Spaces,Community and Leisure ,Supplies & Services,Communications & Computing,Telephone Tracking System,10/09/2020,312199,6,Teletrac Navman (Uk) Ltd
"Highways, Roads & Transport",Parking Services,Plan Pol & Transport,Supplies & Services,Communications & Computing,Telephone Tracking System,10/09/2020,312199,12,Teletrac Navman (Uk) Ltd
Cultural & Related,Open Spaces,Environmental,Supplies & Services,Communications & Computing,Telephone Tracking System,10/09/2020,312199,324,Teletrac Navman (Uk) Ltd
Environmental & Regulatory,Waste & Recycling Management,Environmental,Supplies & Services,Communications & Computing,Telephone Tracking System,10/09/2020,312199,36,Teletrac Navman (Uk) Ltd
Environmental & Regulatory,Street Cleansing (not chargeable to Highways),Environmental,Supplies & Services,Communications & Computing,Telephone Tracking System,10/09/2020,312199,168.7,Teletrac Navman (Uk) Ltd
Environmental & Regulatory,Waste management,Environmental,Supplies & Services,Communications & Computing,Telephone Tracking System,10/09/2020,312199,120,Teletrac Navman (Uk) Ltd
Environmental & Regulatory,Waste management,Environmental,Supplies & Services,Communications & Computing,Telephone Tracking System,10/09/2020,312199,12,Teletrac Navman (Uk) Ltd
Central Services to the Public,Management & Support Services,Environmental,Supplies & Services,Communications & Computing,Telephone Tracking System,10/09/2020,312199,18,Teletrac Navman (Uk) Ltd
Cultural & Related,Open Spaces,Community and Leisure ,Premises related Expenditure,Grounds Maintenance Costs,Gm - Additional Works,10/09/2020,312526,925,Personal Data - Data Protection Act 1998
Central Services to the Public,Management & Support Services,Environmental,Supplies & Services,"Equipment, Furniture & Materials",Maintenance Equip + Materials,16/09/2020,312732,787.21,Euro Car Parts Ltd
Environmental & Regulatory,Regulatory Services,Housing and Environmental Health ,Supplies & Services,Grants and subscriptions,Capital Grants,03/09/2020,312267,954,Andover Glass Works Ltd
Cultural & Related,Open Spaces,Environmental,Third Party Payments,Other Establishments,Private Contractors,24/09/2020,313745,954.68,Ivan Gibson Agricultural Contractor
Central Services to the Public,Management & Support Services,Finance,Employees,Indirect Employee Expenses,Post Entry Training,17/09/2020,312236,857,Chartered Institute Of Internal Auditors
Housing Services,Homelessness,Housing and Environmental Health ,Supplies & Services,Miscellaneous Expenses,Bed & Breakfast,17/09/2020,313205,980,Home From Home Respite Care
Planning & Development,Community Development,Community and Leisure ,Supplies & Services,Grants & Subscriptions,Grants,03/09/2020,312362,1000,The Wallops Pre School
Planning & Development,Community Development,Community and Leisure ,Supplies & Services,Grants & Subscriptions,Grants,17/09/2020,313329,1000,Abbotts Ann Ce Primary School
Cultural & Related,Open Spaces,Community and Leisure ,Supplies & Services,"Equipment, Furniture & Materials",Purchase Equip + Materials,17/09/2020,313080,840,Centrewire Ltd
Central Services to the Public,Management & Support Services,Premises & Asset Management,Supplies & Services,"Equipment, Furniture & Materials",Equipment Hire,10/09/2020,312827,862.5,Crown Water & Coffee
Cultural & Related,Culture & Heritage,Community and Leisure ,Third Party Payments,Private contractors,Main Contractor Costs,10/09/2020,312518,870,The Institute Of Groundsmanship
Cultural & Related,Open Spaces,Community and Leisure ,Premises related Expenditure,Grounds Maintenance Costs,Gm - Additional Works,10/09/2020,312714,890.95,Stonbury Ltd
Central Services to the Public,Management & Support Services,Premises & Asset Management,Employees,Indirect Employee Expenses,Advertising Of Vacancies,09/09/2020,312223,895,Landor Links Ltd
Central Services to the Public,Elections,Legal & Democratic,Supplies & Services,"Printing, Stationery & General Office Expenses",External Printing,24/09/2020,313244,903.34,Financial Data Management Plc
Central Services to the Public,Management & Support Services,Finance,Supplies & Services,"Printing, Stationery & General Office Expenses",Postage Costs,03/09/2020,311731,919.74,Whistl Uk Ltd
Central Services to the Public,Management & Support Services,HR Services,Employees,Indirect Employee Expenses,Advertising Of Vacancies,10/09/2020,312570,925,Haymarket Media Group Ltd
Cultural & Related,Open Spaces,Community and Leisure ,Supplies & Services,"Equipment, Furniture & Materials",Purchase Equip + Materials,17/09/2020,313079,420,Centrewire Ltd
Cultural & Related,Open Spaces,Community and Leisure ,Premises related Expenditure,Grounds Maintenance Costs,Gm - Additional Works,17/09/2020,313079,510,Centrewire Ltd
Cultural & Related,Culture & Heritage,Community and Leisure ,Third Party Payments,Private contractors,Main Contractor Costs,10/09/2020,312753,950,Real Estate Strategies Ltd
Environmental & Regulatory,Waste management,Environmental,Supplies & Services,"Equipment, Furniture & Materials",Purchase Equip + Materials,03/09/2020,311125,960,Egbert H Taylor & Co Ltd
Central Services to the Public,Management & Support Services,Environmental,Transport Related Expenditure,Direct Transport Costs,Repair Materials,10/09/2020,312229,965.94,Terberg Matec Uk Limited
Environmental & Regulatory,Waste management,Environmental,Transport Related Expenditure,Direct Transport Costs,Repair Materials,10/09/2020,312196,972.9,Dennis Eagle Ltd
Environmental & Regulatory,Waste & Recycling Management,Environmental,Supplies & Services,Grants & Subscriptions,Subscriptions,24/09/2020,313271,990,Mallard Consultancy Ltd
Environmental & Regulatory,Waste management,Environmental,Transport Related Expenditure,Direct Transport Costs,Repair Materials,24/09/2020,313501,998.81,Terberg Matec Uk Limited
Central Services to the Public,Management & Support Services,Environmental,Supplies & Services,"Equipment, Furniture & Materials",Purchase Tools,10/09/2020,312544,1016.8,Mb Garage Services Ltd
Cultural & Related,Open Spaces,Environmental,Supplies & Services,Communications & Computing,Telephone Tracking System,10/09/2020,312584,1022,Teletrac Navman (Uk) Ltd
Environmental & Regulatory,Waste management,Environmental,Employees,Indirect Employee Expenses,Agency Staff - Waged Posts,03/09/2020,312145,1054.74,24-7 Staffing
Central Services to the Public,Local Tax Collection,Revenues,Supplies & Services,"Printing, Stationery & General Office Expenses",Postage Costs,24/09/2020,313505,15.45,Royal Mail Group Ltd
Central Services to the Public,Local Tax Collection,Revenues,Supplies & Services,"Printing, Stationery & General Office Expenses",Postage Costs,24/09/2020,313505,964.86,Royal Mail Group Ltd
Housing Services,Housing Benefits ,Revenues,Supplies & Services,"Printing, Stationery & General Office Expenses",Postage Costs,24/09/2020,313505,34.72,Royal Mail Group Ltd
Central Services to the Public,Local Tax Collection,Revenues,Supplies & Services,"Printing, Stationery & General Office Expenses",Postage Costs,24/09/2020,313505,34.72,Royal Mail Group Ltd
Environmental & Regulatory,Waste management,Environmental,Supplies & Services,"Printing, Stationery & General Office Expenses",Postage Costs,24/09/2020,313505,6.3,Royal Mail Group Ltd
External Trading Accounts,Business Parks,Premises & Asset Management,Premises related Expenditure,Repairs Alterations & Maintenance of Buildings,Planned Maintenance - Non Est,17/09/2020,312830,192.12,Healthy Buildings International
Cultural & Related,Culture & Heritage,Premises & Asset Management,Premises related Expenditure,Repairs Alterations & Maintenance of Buildings,Planned Maintenance - Non Est,17/09/2020,312830,144.09,Healthy Buildings International
Cultural & Related,Culture & Heritage,Premises & Asset Management,Premises related Expenditure,Repairs Alterations & Maintenance of Buildings,Planned Maintenance - Non Est,17/09/2020,312830,144.09,Healthy Buildings International
Central Services to the Public,Management & Support Services,Premises & Asset Management,Premises related Expenditure,Repairs Alterations & Maintenance of Buildings,Planned Maintenance - Non Est,17/09/2020,312830,144.09,Healthy Buildings International
Central Services to the Public,Management & Support Services,Premises & Asset Management,Premises related Expenditure,Repairs Alterations & Maintenance of Buildings,Planned Maintenance - Non Est,17/09/2020,312830,144.09,Healthy Buildings International
Cultural & Related,Recreation & Sport,Community and Leisure ,Premises related Expenditure,Repairs Alterations & Maintenance of Buildings,Planned Maintenance - Non Est,17/09/2020,312830,144.09,Healthy Buildings International
"Highways, Roads & Transport",Parking Services,Plan Pol & Transport,Premises related Expenditure,Repairs Alterations & Maintenance of Buildings,Planned Maintenance - Non Est,17/09/2020,312830,144.09,Healthy Buildings International
Environmental & Regulatory,Regulatory Services,Housing and Environmental Health ,Supplies & Services,Grants and subscriptions,Capital Grants,24/09/2020,313750,1273,Epw Construction Ltd
Central Services to the Public,Elections,Legal & Democratic,Supplies & Services,"Printing, Stationery & General Office Expenses",Written Media,17/09/2020,312749,1093.5,Thomson Reuters
Central Services to the Public,Management & Support Services,Finance,Supplies & Services,"Printing, Stationery & General Office Expenses",Postage Costs,24/09/2020,313259,1094.82,Whistl Uk Ltd
Environmental & Regulatory,Waste management,Environmental,Transport Related Expenditure,Direct Transport Costs,Repair Materials,24/09/2020,313218,106.55,Dennis Eagle Ltd
Central Services to the Public,Management & Support Services,Environmental,Transport Related Expenditure,Direct Transport Costs,Repair Materials,24/09/2020,313218,1000.66,Dennis Eagle Ltd
"Highways, Roads & Transport",Parking Services,Plan Pol & Transport,Supplies & Services,"Equipment, Furniture & Materials",Purchase Equip + Materials,10/09/2020,312220,1108.1,Ina Parc Ltd
External Trading Accounts,Business Parks,Premises & Asset Management,Premises related Expenditure,Repairs Alterations & Maintenance of Buildings,Planned Maintenance - Non Est,17/09/2020,312831,144.09,Healthy Buildings International
Cultural & Related,Culture & Heritage,Premises & Asset Management,Premises related Expenditure,Repairs Alterations & Maintenance of Buildings,Planned Maintenance - Non Est,17/09/2020,312831,96.06,Healthy Buildings International
Cultural & Related,Culture & Heritage,Premises & Asset Management,Premises related Expenditure,Repairs Alterations & Maintenance of Buildings,Planned Maintenance - Non Est,17/09/2020,312831,144.09,Healthy Buildings International
Cultural & Related,Culture & Heritage,Premises & Asset Management,Premises related Expenditure,Repairs Alterations & Maintenance of Buildings,Planned Maintenance - Non Est,17/09/2020,312831,144.09,Healthy Buildings International
Central Services to the Public,Management & Support Services,Premises & Asset Management,Premises related Expenditure,Repairs Alterations & Maintenance of Buildings,Planned Maintenance - Non Est,17/09/2020,312831,144.09,Healthy Buildings International
Central Services to the Public,Management & Support Services,Premises & Asset Management,Premises related Expenditure,Repairs Alterations & Maintenance of Buildings,Planned Maintenance - Non Est,17/09/2020,312831,144.09,Healthy Buildings International
Environmental & Regulatory,Regulatory Services,Premises & Asset Management,Premises related Expenditure,Repairs Alterations & Maintenance of Buildings,Planned Maintenance - Non Est,17/09/2020,312831,144.09,Healthy Buildings International
Environmental & Regulatory,"Cemetery, Cremation and Mortuary Services",Community and Leisure ,Premises related Expenditure,Repairs Alterations & Maintenance of Buildings,Planned Maintenance - Non Est,17/09/2020,312831,144.09,Healthy Buildings International
"Highways, Roads & Transport",Parking Services,Plan Pol & Transport,Premises related Expenditure,Repairs Alterations & Maintenance of Buildings,Planned Maintenance - Non Est,17/09/2020,312831,48.03,Healthy Buildings International
Cultural & Related,Culture & Heritage,Community and Leisure ,Third Party Payments,Private contractors,Main Contractor Costs,10/09/2020,312752,1160,Ion Consulting Engineers Ltd
Cultural & Related,Open Spaces,Environmental,Supplies & Services,"Equipment, Furniture & Materials",Purchase Equip + Materials,17/09/2020,313201,1198.4,Nomix Enviro
Environmental & Regulatory,Regulatory Services,Housing and Environmental Health ,Supplies & Services,Services,Professional Fees,10/09/2020,312802,1460,Access Independent Ltd
External Trading Accounts,Business Parks,Premises & Asset Management,Premises related Expenditure,Repairs Alterations & Maintenance of Buildings,Planned Maintenance - Non Est,17/09/2020,312832,144.09,Healthy Buildings International
External Trading Accounts,Business Parks,Premises & Asset Management,Premises related Expenditure,Repairs Alterations & Maintenance of Buildings,Planned Maintenance - Non Est,17/09/2020,312832,144.09,Healthy Buildings International
Cultural & Related,Culture & Heritage,Premises & Asset Management,Premises related Expenditure,Repairs Alterations & Maintenance of Buildings,Planned Maintenance - Non Est,17/09/2020,312832,144.09,Healthy Buildings International
Cultural & Related,Culture & Heritage,Premises & Asset Management,Premises related Expenditure,Repairs Alterations & Maintenance of Buildings,Planned Maintenance - Non Est,17/09/2020,312832,96.06,Healthy Buildings International
Environmental & Regulatory,Regulatory Services,Premises & Asset Management,Premises related Expenditure,Repairs Alterations & Maintenance of Buildings,Planned Maintenance - Non Est,17/09/2020,312832,144.09,Healthy Buildings International
Cultural & Related,Recreation & Sport,Community and Leisure ,Premises related Expenditure,Repairs Alterations & Maintenance of Buildings,Planned Maintenance - Non Est,17/09/2020,312832,144.09,Healthy Buildings International
Environmental & Regulatory,"Cemetery, Cremation and Mortuary Services",Community and Leisure ,Premises related Expenditure,Repairs Alterations & Maintenance of Buildings,Planned Maintenance - Non Est,17/09/2020,312832,144.09,Healthy Buildings International
Cultural & Related,Open Spaces,Community and Leisure ,Premises related Expenditure,Repairs Alterations & Maintenance of Buildings,Planned Maintenance - Non Est,17/09/2020,312832,144.09,Healthy Buildings International
Cultural & Related,Culture & Heritage,Community and Leisure ,Premises related Expenditure,Repairs Alterations & Maintenance of Buildings,Planned Maintenance - Non Est,17/09/2020,312832,144.09,Healthy Buildings International
External Trading Accounts,Business Parks,Premises & Asset Management,Premises related Expenditure,Repairs Alterations & Maintenance of Buildings,Estates premises costs - AMP,03/09/2020,309545,297,Easy Epc
External Trading Accounts,Business Parks,Premises & Asset Management,Premises related Expenditure,Repairs Alterations & Maintenance of Buildings,Estates premises costs - AMP,03/09/2020,309545,873.87,Easy Epc
Cultural & Related,Recreation & Sport,Community and Leisure ,Premises related Expenditure,Repairs Alterations & Maintenance of Buildings,Estates premises costs - AMP,03/09/2020,309545,99,Easy Epc
Environmental & Regulatory,Waste management,Environmental,Supplies & Services,Services,Training Courses,10/09/2020,312719,1315,By-Pass Driver Training
Environmental & Regulatory,Waste management,Environmental,Transport Related Expenditure,Direct Transport Costs,Repair Materials,10/09/2020,311600,1308.06,Dennis Eagle Ltd
Central Services to the Public,Local Tax Collection,Revenues,Supplies & Services,"Printing, Stationery & General Office Expenses",Postage Costs,24/09/2020,313728,131.93,Royal Mail Group Ltd
Central Services to the Public,Local Tax Collection,Revenues,Supplies & Services,"Printing, Stationery & General Office Expenses",Postage Costs,24/09/2020,313728,527.71,Royal Mail Group Ltd
Housing Services,Housing Benefits ,Revenues,Supplies & Services,"Printing, Stationery & General Office Expenses",Postage Costs,24/09/2020,313728,329.81,Royal Mail Group Ltd
Central Services to the Public,Local Tax Collection,Revenues,Supplies & Services,"Printing, Stationery & General Office Expenses",Postage Costs,24/09/2020,313728,329.81,Royal Mail Group Ltd
Central Services to the Public,Management & Support Services,Finance,Supplies & Services,Services,Professional Fees,17/09/2020,312815,1335,Hampshire County Council
External Trading Accounts,Business Parks,Premises & Asset Management,Premises related Expenditure,Repairs Alterations & Maintenance of Buildings,Planned Maintenance - Non Est,17/09/2020,313049,79.05,Axis Fire And Security Services Ltd
External Trading Accounts,Economic Development,Premises & Asset Management,Premises related Expenditure,Repairs Alterations & Maintenance of Buildings,Planned Maintenance - Non Est,17/09/2020,313049,79.05,Axis Fire And Security Services Ltd
Cultural & Related,Culture & Heritage,Premises & Asset Management,Premises related Expenditure,Repairs Alterations & Maintenance of Buildings,Planned Maintenance - Non Est,17/09/2020,313049,79.05,Axis Fire And Security Services Ltd
Cultural & Related,Culture & Heritage,Premises & Asset Management,Premises related Expenditure,Repairs Alterations & Maintenance of Buildings,Planned Maintenance - Non Est,17/09/2020,313049,79.05,Axis Fire And Security Services Ltd
Cultural & Related,Culture & Heritage,Premises & Asset Management,Premises related Expenditure,Repairs Alterations & Maintenance of Buildings,Planned Maintenance - Non Est,17/09/2020,313049,79.05,Axis Fire And Security Services Ltd
Cultural & Related,Culture & Heritage,Premises & Asset Management,Premises related Expenditure,Repairs Alterations & Maintenance of Buildings,Planned Maintenance - Non Est,17/09/2020,313049,79.05,Axis Fire And Security Services Ltd
Cultural & Related,Culture & Heritage,Premises & Asset Management,Premises related Expenditure,Repairs Alterations & Maintenance of Buildings,Building Maint - Non Estates,17/09/2020,313049,79.05,Axis Fire And Security Services Ltd
Cultural & Related,Culture & Heritage,Premises & Asset Management,Premises related Expenditure,Repairs Alterations & Maintenance of Buildings,Planned Maintenance - Non Est,17/09/2020,313049,237.15,Axis Fire And Security Services Ltd
Central Services to the Public,Management & Support Services,Premises & Asset Management,Premises related Expenditure,Repairs Alterations & Maintenance of Buildings,Planned Maintenance - Non Est,17/09/2020,313049,79.05,Axis Fire And Security Services Ltd
Central Services to the Public,Management & Support Services,Premises & Asset Management,Premises related Expenditure,Repairs Alterations & Maintenance of Buildings,Planned Maintenance - Non Est,17/09/2020,313049,79.05,Axis Fire And Security Services Ltd
Central Services to the Public,Management & Support Services,Premises & Asset Management,Premises related Expenditure,Repairs Alterations & Maintenance of Buildings,Planned Maintenance - Non Est,17/09/2020,313049,79.05,Axis Fire And Security Services Ltd
Cultural & Related,Recreation & Sport,Community and Leisure ,Premises related Expenditure,Repairs Alterations & Maintenance of Buildings,Planned Maintenance - Non Est,17/09/2020,313049,79.2,Axis Fire And Security Services Ltd
Cultural & Related,Recreation & Sport,Community and Leisure ,Premises related Expenditure,Repairs Alterations & Maintenance of Buildings,Planned Maintenance - Non Est,17/09/2020,313049,79.05,Axis Fire And Security Services Ltd
Cultural & Related,Recreation & Sport,Community and Leisure ,Premises related Expenditure,Repairs Alterations & Maintenance of Buildings,Planned Maintenance - Non Est,17/09/2020,313049,79.05,Axis Fire And Security Services Ltd
Cultural & Related,Culture & Heritage,Community and Leisure ,Premises related Expenditure,Repairs Alterations & Maintenance of Buildings,Planned Maintenance - Non Est,17/09/2020,313049,79.05,Axis Fire And Security Services Ltd
Environmental & Regulatory,Regulatory Services,Housing and Environmental Health ,Supplies & Services,Grants and subscriptions,Capital Grants,24/09/2020,313751,1765,Liftech Systems (Se) Ltd
Environmental & Regulatory,Waste management,Environmental,Supplies & Services,Services,Training Courses,17/09/2020,313213,1515,By-Pass Driver Training
Central Services to the Public,Management & Support Services,Premises & Asset Management,Supplies & Services,Services,Professional Fees,10/09/2020,312756,1500,Milestone Transport Planning Ltd
External Trading Accounts,Economic Development,Premises & Asset Management,Supplies & Services,Miscellaneous Expenses,Promotions / Special Events,17/09/2020,312343,1800,Creative Workshops For Children Uk
External Trading Accounts,Business Parks,Premises & Asset Management,Premises related Expenditure,Repairs Alterations & Maintenance of Buildings,Planned Maintenance - Non Est,10/09/2020,312521,48.03,Healthy Buildings International
External Trading Accounts,Business Parks,Premises & Asset Management,Premises related Expenditure,Repairs Alterations & Maintenance of Buildings,Planned Maintenance - Non Est,10/09/2020,312521,192.12,Healthy Buildings International
Cultural & Related,Culture & Heritage,Premises & Asset Management,Premises related Expenditure,Repairs Alterations & Maintenance of Buildings,Planned Maintenance - Non Est,10/09/2020,312521,48.03,Healthy Buildings International
Cultural & Related,Culture & Heritage,Premises & Asset Management,Premises related Expenditure,Repairs Alterations & Maintenance of Buildings,Planned Maintenance - Non Est,10/09/2020,312521,48.03,Healthy Buildings International
Cultural & Related,Culture & Heritage,Premises & Asset Management,Premises related Expenditure,Repairs Alterations & Maintenance of Buildings,Planned Maintenance - Non Est,10/09/2020,312521,48.03,Healthy Buildings International
Cultural & Related,Culture & Heritage,Premises & Asset Management,Premises related Expenditure,Repairs Alterations & Maintenance of Buildings,Planned Maintenance - Non Est,10/09/2020,312521,48.03,Healthy Buildings International
Cultural & Related,Culture & Heritage,Premises & Asset Management,Premises related Expenditure,Repairs Alterations & Maintenance of Buildings,Planned Maintenance - Non Est,10/09/2020,312521,48.03,Healthy Buildings International
Cultural & Related,Culture & Heritage,Premises & Asset Management,Premises related Expenditure,Repairs Alterations & Maintenance of Buildings,Planned Maintenance - Non Est,10/09/2020,312521,48.03,Healthy Buildings International
Cultural & Related,Culture & Heritage,Premises & Asset Management,Premises related Expenditure,Repairs Alterations & Maintenance of Buildings,Planned Maintenance - Non Est,10/09/2020,312521,96.06,Healthy Buildings International
Central Services to the Public,Management & Support Services,Premises & Asset Management,Premises related Expenditure,Repairs Alterations & Maintenance of Buildings,Planned Maintenance - Non Est,10/09/2020,312521,48.03,Healthy Buildings International
Central Services to the Public,Management & Support Services,Premises & Asset Management,Premises related Expenditure,Repairs Alterations & Maintenance of Buildings,Planned Maintenance - Non Est,10/09/2020,312521,48.03,Healthy Buildings International
Central Services to the Public,Management & Support Services,Premises & Asset Management,Premises related Expenditure,Repairs Alterations & Maintenance of Buildings,Planned Maintenance - Non Est,10/09/2020,312521,48.03,Healthy Buildings International
Central Services to the Public,Management & Support Services,Premises & Asset Management,Premises related Expenditure,Repairs Alterations & Maintenance of Buildings,Planned Maintenance - Non Est,10/09/2020,312521,48.03,Healthy Buildings International
Environmental & Regulatory,Regulatory Services,Premises & Asset Management,Premises related Expenditure,Repairs Alterations & Maintenance of Buildings,Planned Maintenance - Non Est,10/09/2020,312521,96.06,Healthy Buildings International
Cultural & Related,Recreation & Sport,Community and Leisure ,Premises related Expenditure,Repairs Alterations & Maintenance of Buildings,Planned Maintenance - Non Est,10/09/2020,312521,48.03,Healthy Buildings International
Cultural & Related,Recreation & Sport,Community and Leisure ,Premises related Expenditure,Repairs Alterations & Maintenance of Buildings,Planned Maintenance - Non Est,10/09/2020,312521,48.03,Healthy Buildings International
Cultural & Related,Recreation & Sport,Community and Leisure ,Premises related Expenditure,Repairs Alterations & Maintenance of Buildings,Planned Maintenance - Non Est,10/09/2020,312521,48.03,Healthy Buildings International
Cultural & Related,Recreation & Sport,Community and Leisure ,Premises related Expenditure,Repairs Alterations & Maintenance of Buildings,Planned Maintenance - Non Est,10/09/2020,312521,48.03,Healthy Buildings International
Cultural & Related,Recreation & Sport,Community and Leisure ,Premises related Expenditure,Repairs Alterations & Maintenance of Buildings,Planned Maintenance - Non Est,10/09/2020,312521,48.03,Healthy Buildings International
Cultural & Related,Recreation & Sport,Community and Leisure ,Premises related Expenditure,Repairs Alterations & Maintenance of Buildings,Planned Maintenance - Non Est,10/09/2020,312521,48.03,Healthy Buildings International
Cultural & Related,Recreation & Sport,Community and Leisure ,Premises related Expenditure,Repairs Alterations & Maintenance of Buildings,Planned Maintenance - Non Est,10/09/2020,312521,48.03,Healthy Buildings International
Cultural & Related,Recreation & Sport,Community and Leisure ,Premises related Expenditure,Repairs Alterations & Maintenance of Buildings,Planned Maintenance - Non Est,10/09/2020,312521,48.03,Healthy Buildings International
Environmental & Regulatory,"Cemetery, Cremation and Mortuary Services",Community and Leisure ,Premises related Expenditure,Repairs Alterations & Maintenance of Buildings,Planned Maintenance - Non Est,10/09/2020,312521,48.03,Healthy Buildings International
Environmental & Regulatory,"Cemetery, Cremation and Mortuary Services",Community and Leisure ,Premises related Expenditure,Repairs Alterations & Maintenance of Buildings,Planned Maintenance - Non Est,10/09/2020,312521,48.03,Healthy Buildings International
Cultural & Related,Open Spaces,Community and Leisure ,Premises related Expenditure,Repairs Alterations & Maintenance of Buildings,Planned Maintenance - Non Est,10/09/2020,312521,48.03,Healthy Buildings International
Cultural & Related,Culture & Heritage,Community and Leisure ,Premises related Expenditure,Repairs Alterations & Maintenance of Buildings,Planned Maintenance - Non Est,10/09/2020,312521,48.03,Healthy Buildings International
"Highways, Roads & Transport",Parking Services,Plan Pol & Transport,Premises related Expenditure,Repairs Alterations & Maintenance of Buildings,Planned Maintenance - Non Est,10/09/2020,312521,96.06,Healthy Buildings International
Environmental & Regulatory,Waste & Recycling Management,Environmental,Transport Related Expenditure,Direct Transport Costs,External Garages,10/09/2020,311606,360,Adams Morey Ltd
Environmental & Regulatory,Waste & Recycling Management,Environmental,Transport Related Expenditure,Direct Transport Costs,Repair Materials,10/09/2020,311606,1233.42,Adams Morey Ltd
Environmental & Regulatory,Regulatory Services,Housing and Environmental Health ,Supplies & Services,Grants and subscriptions,Capital Grants,17/09/2020,313324,1986.54,B J C Design
Environmental & Regulatory,Waste management,Environmental,Transport Related Expenditure,Direct Transport Costs,Repair Materials,10/09/2020,311816,1656.41,Terberg Matec Uk Limited
Planning & Development,Community Development,Community and Leisure ,Supplies & Services,Grants & Subscriptions,Grants,24/09/2020,313327,2000,St Mary'S Andover
Cultural & Related,Open Spaces,Environmental,Transport Related Expenditure,Direct Transport Costs,Repair Materials,10/09/2020,312722,140,Md Services (Andover) Ltd
Environmental & Regulatory,Street Cleansing (not chargeable to Highways),Environmental,Transport Related Expenditure,Direct Transport Costs,Repair Materials,10/09/2020,312722,140,Md Services (Andover) Ltd
Environmental & Regulatory,Waste management,Environmental,Transport Related Expenditure,Direct Transport Costs,Repair Materials,10/09/2020,312722,80,Md Services (Andover) Ltd
Environmental & Regulatory,Waste management,Environmental,Transport Related Expenditure,Direct Transport Costs,Repair Materials,10/09/2020,312722,40,Md Services (Andover) Ltd
Central Services to the Public,Management & Support Services,Environmental,Transport Related Expenditure,Direct Transport Costs,Workshop Consumables,10/09/2020,312722,420.84,Md Services (Andover) Ltd
Central Services to the Public,Management & Support Services,Environmental,Transport Related Expenditure,Direct Transport Costs,Repair Materials,10/09/2020,312722,793.76,Md Services (Andover) Ltd
Central Services to the Public,Management & Support Services,Environmental,Supplies & Services,"Equipment, Furniture & Materials",Purchase Tools,10/09/2020,312722,34.9,Md Services (Andover) Ltd
Central Services to the Public,Management & Support Services,Environmental,Supplies & Services,"Clothes, Uniforms & Laundry",Clothing + Uniforms,10/09/2020,312722,24,Md Services (Andover) Ltd
External Trading Accounts,Business Parks,Premises & Asset Management,Premises related Expenditure,Repairs Alterations & Maintenance of Buildings,Estates premises costs - AMP,24/09/2020,313741,1701,Options Flooring Ltd
Cultural & Related,Open Spaces,Environmental,Transport Related Expenditure,Direct Transport Costs,External Garages,24/09/2020,313632,300,A T H Machinery Ltd
Cultural & Related,Open Spaces,Environmental,Transport Related Expenditure,Direct Transport Costs,Repair Materials,24/09/2020,313632,1416.28,A T H Machinery Ltd
Housing Services,Housing Benefits ,Revenues,Employees,Indirect Employee Expenses,Temporary Staff,17/09/2020,313230,2100,Personal Data - Data Protection Act 1998
Environmental & Regulatory,Waste management,Environmental,Employees,Indirect Employee Expenses,Agency Staff - Waged Posts,24/09/2020,313309,1316.94,24-7 Staffing
Environmental & Regulatory,Waste management,Environmental,Employees,Indirect Employee Expenses,Agency Staff - Waged Posts,24/09/2020,313309,502.39,24-7 Staffing
"Highways, Roads & Transport",Parking Services,Plan Pol & Transport,Supplies & Services,"Equipment, Furniture & Materials",Purchase Equip + Materials,10/09/2020,312219,1865.35,Ina Parc Ltd
Central Services to the Public,Management & Support Services,Premises & Asset Management,Premises related Expenditure,Repairs Alterations & Maintenance of Buildings,General Repairs,24/09/2020,313477,1894.32,Irvine Grenson Ltd
Environmental & Regulatory,Street Cleansing (not chargeable to Highways),Environmental,Supplies & Services,Miscellaneous Expenses,Hazardous / Fly Tipped Waste,10/09/2020,312576,1897,Bkp Waste & Recycling Ltd
Planning & Development,Development Control,Planning & Building,Supplies & Services,Services,Project Consultancy - Policy,24/09/2020,313716,1947,M J Rees & Co Ltd
Central Services,Corporate & Democratic Core,Corporate & Democratic,Supplies & Services,Services,Legal Fees,03/09/2020,311798,2375,Radcliffe Chambers
Environmental & Regulatory,Regulatory Services,Housing and Environmental Health ,Supplies & Services,Miscellaneous Expenses,Kennel fees,10/09/2020,312333,1992.44,Three Oak Boarding Kennels
Environmental & Regulatory,Community Development,Community and Leisure ,Supplies & Services,Grants & Subscriptions,Subscriptions,24/09/2020,313273,2494,Hampshire County Council
Central Services to the Public,Management & Support Services,Finance,Supplies & Services,Grants & Subscriptions,Grants,03/09/2020,312372,2500,Purified Visibility
Central Services to the Public,Management & Support Services,Finance,Supplies & Services,Grants & Subscriptions,Grants,03/09/2020,312374,2500,The Horse Trough
Central Services to the Public,Management & Support Services,Finance,Supplies & Services,Grants & Subscriptions,Grants,03/09/2020,312375,2500,P B Coaching
Central Services to the Public,Management & Support Services,Finance,Supplies & Services,Grants & Subscriptions,Grants,03/09/2020,312377,2500,Sapsorrel Viticulture & Vineyard Consultancy
Central Services to the Public,Management & Support Services,Finance,Supplies & Services,Grants & Subscriptions,Grants,03/09/2020,312378,2500,Abbey Vehicle Rental Ltd
Central Services to the Public,Management & Support Services,Finance,Supplies & Services,Grants & Subscriptions,Grants,03/09/2020,312379,2500,Clearsky Properties Ltd
Central Services to the Public,Management & Support Services,Finance,Supplies & Services,Grants & Subscriptions,Grants,24/09/2020,313782,2500,Personal Data - Data Protection Act 1998
Environmental & Regulatory,"Cemetery, Cremation and Mortuary Services",Community and Leisure ,Premises related Expenditure,Repairs Alterations & Maintenance of Buildings,Estates premises costs - AMP,24/09/2020,313743,2512,Nt Contractors Limited
Environmental & Regulatory,Waste management,Environmental,Transport Related Expenditure,Direct Transport Costs,Tyres,10/09/2020,311579,1067.4,Tructyre Ats
Environmental & Regulatory,Waste management,Environmental,Transport Related Expenditure,Direct Transport Costs,Tyres,10/09/2020,311579,1046.74,Tructyre Ats
Cultural & Related,Open Spaces,Environmental,Transport Related Expenditure,Direct Transport Costs,External Garages,17/09/2020,313035,150,A T H Machinery Ltd
Cultural & Related,Open Spaces,Environmental,Transport Related Expenditure,Direct Transport Costs,Repair Materials,17/09/2020,313035,1969.66,A T H Machinery Ltd
Cultural & Related,Recreation & Sport,Community and Leisure ,Premises related Expenditure,Repairs Alterations & Maintenance of Buildings,Estates premises costs - AMP,10/09/2020,312699,2153,Mh Goals Ltd
Environmental & Regulatory,Community Safety,Housing and Environmental Health ,Support Services,IT,IT Hardware costs,24/09/2020,313642,2158,Dssl Group Ltd
Environmental & Regulatory,Waste management,Environmental,Employees,Indirect Employee Expenses,Agency Staff - Waged Posts,17/09/2020,309802,2170.85,24-7 Staffing
Cultural & Related,Open Spaces,Environmental,Supplies & Services,"Equipment, Furniture & Materials",Purchase Equip + Materials,17/09/2020,311595,2285.5,Rigby Taylor Ltd
Environmental & Regulatory,Waste management,Environmental,Employees,Indirect Employee Expenses,Agency Staff - Waged Posts,03/09/2020,312326,2176.48,24-7 Staffing
Cultural & Related,Open Spaces,Environmental,Transport Related Expenditure,Direct Transport Costs,External Garages,17/09/2020,312800,200,A T H Machinery Ltd
Cultural & Related,Open Spaces,Environmental,Transport Related Expenditure,Direct Transport Costs,Repair Materials,17/09/2020,312800,1980.43,A T H Machinery Ltd
Central Services to the Public,Management & Support Services,Premises & Asset Management,Premises related Expenditure,Repairs Alterations & Maintenance of Buildings,Planned Maintenance - Non Est,10/09/2020,312523,2196.96,Corrigenda Ltd
Cultural & Related,Open Spaces,Environmental,Transport Related Expenditure,Direct Transport Costs,External Garages,17/09/2020,313034,300,A T H Machinery Ltd
Cultural & Related,Open Spaces,Environmental,Transport Related Expenditure,Direct Transport Costs,Repair Materials,17/09/2020,313034,1912.97,A T H Machinery Ltd
Cultural & Related,Open Spaces,Community and Leisure ,Employees,Indirect Employee Expenses,Temporary Staff,17/09/2020,313186,2275,The Arboricultural Co Ltd
Central Services to the Public,Management & Support Services,HR Services,Third Party Payments,Other Local Authorities,Shared Service Contract Costs,10/09/2020,311811,2396.16,Mhr International Uk Ltd
Central Services,Corporate & Democratic Core,Corporate & Democratic,Supplies & Services,Services,Project Consultancy - Policy,10/09/2020,312509,2418.71,Nexus Planning Ltd
Central Services to the Public,Management & Support Services,IT,Supplies & Services,"Equipment, Furniture & Materials",Maintenance Equip + Materials,17/09/2020,313328,2487.66,Sse Enterprise Lighting
Central Services to the Public,Management & Support Services,Estates and Economic Development ,Third Party Payments,Private contractors,Main Contractor Costs,03/09/2020,312179,2688,Mccarthy Bainbridge Ltd
Central Services to the Public,Management & Support Services,Revenues,Supplies & Services,Miscellaneous Expenses,Security Services,10/09/2020,312192,62.8,Jade Security Services Ltd
"Highways, Roads & Transport",Parking Services,Plan Pol & Transport,Supplies & Services,Services,Professional Fees,10/09/2020,312192,2646.13,Jade Security Services Ltd
Planning & Development,Development Control,Planning & Building,Employees,Indirect Employee Expenses,Temporary Staff,02/09/2020,311828,3254.31,Wadey Trees
Central Services to the Public,Management & Support Services,Environmental,Transport Related Expenditure,Direct Transport Costs,Diesel,24/09/2020,313685,2843.2,Wp Group Limited
Central Services to the Public,Management & Support Services,Revenues,Supplies & Services,Miscellaneous Expenses,Security Services,24/09/2020,313304,62.8,Jade Security Services Ltd
"Highways, Roads & Transport",Parking Services,Plan Pol & Transport,Supplies & Services,Services,Professional Fees,24/09/2020,313304,2851.63,Jade Security Services Ltd
Cultural & Related,Culture & Heritage,Estates and Economic Development ,Third Party Payments,Private contractors,Main Contractor Costs,24/09/2020,313315,3025,The Genesis Design Studio Ltd
Central Services to the Public,Management & Support Services,Environmental,Transport Related Expenditure,Direct Transport Costs,Diesel,10/09/2020,312332,3190.95,Wp Group Limited
Central Services to the Public,Management & Support Services,Finance,Supplies & Services,"Printing, Stationery & General Office Expenses",Postage Costs,10/09/2020,312524,4000,Pitney Bowes Limited
Planning & Development,Economic Development,Premises & Asset Management,Supplies & Services,Grants & Subscriptions,Contributions,17/09/2020,313187,4000,Romsey Town Council
Environmental & Regulatory,Regulatory Services,Housing and Environmental Health ,Supplies & Services,Grants and subscriptions,Capital Grants,02/09/2020,312259,4060.67,A & E Builders
Central Services to the Public,Management & Support Services,Environmental,Transport Related Expenditure,Direct Transport Costs,Diesel,17/09/2020,313190,3416.72,Wp Group Limited
Environmental & Regulatory,Waste management,Environmental,Employees,Indirect Employee Expenses,Agency Staff - Waged Posts,24/09/2020,313310,2401.47,24-7 Staffing
Environmental & Regulatory,Waste management,Environmental,Employees,Indirect Employee Expenses,Agency Staff - Waged Posts,24/09/2020,313310,1065.24,24-7 Staffing
Environmental & Regulatory,Regulatory Services,Housing and Environmental Health ,Supplies & Services,Grants and subscriptions,Capital Grants,17/09/2020,313235,4180,Liftech Systems (Se) Ltd
Central Services,Corporate & Democratic Core,Corporate & Democratic,Supplies & Services,Services,Project Consultancy - Policy,24/09/2020,312510,3546.5,Nexus Planning Ltd
Planning & Development,Development Control,Planning & Building,Employees,Indirect Employee Expenses,Temporary Staff,02/09/2020,311827,4294.5,Wadey Trees
External Trading Accounts,Business Parks,Premises & Asset Management,Supplies & Services,"Equipment, Furniture & Materials",Equipment Hire,24/09/2020,313217,388.17,Woosh Washrooms
Cultural & Related,Tourism,Planning Policy & Economic Development ,Supplies & Services,"Equipment, Furniture & Materials",Equipment Hire,24/09/2020,313217,36.23,Woosh Washrooms
Cultural & Related,Culture & Heritage,Premises & Asset Management,Supplies & Services,"Equipment, Furniture & Materials",Equipment Hire,24/09/2020,313217,144.92,Woosh Washrooms
Central Services to the Public,Management & Support Services,Premises & Asset Management,Supplies & Services,"Equipment, Furniture & Materials",Equipment Hire,24/09/2020,313217,2753.33,Woosh Washrooms
Central Services to the Public,Management & Support Services,Premises & Asset Management,Supplies & Services,"Equipment, Furniture & Materials",Equipment Hire,24/09/2020,313217,108.69,Woosh Washrooms
Central Services to the Public,Management & Support Services,Premises & Asset Management,Supplies & Services,"Equipment, Furniture & Materials",Equipment Hire,24/09/2020,313217,36.23,Woosh Washrooms
Cultural & Related,Recreation & Sport,Community and Leisure ,Supplies & Services,"Equipment, Furniture & Materials",Equipment Hire,24/09/2020,313217,144.92,Woosh Washrooms
Central Services to the Public,Management & Support Services,Environmental,Transport Related Expenditure,Direct Transport Costs,Diesel,10/09/2020,312577,3632.29,Wp Group Limited
Central Services to the Public,Management & Support Services,Environmental,Transport Related Expenditure,Direct Transport Costs,Diesel,10/09/2020,311610,3707.09,Wp Group Limited
Cultural & Related,Regulatory Services,Community and Leisure ,Third Party Payments,Private contractors,Main Contractor Costs,03/09/2020,312264,4534.7,Over Wallop Parish Council
Environmental & Regulatory,Street Cleansing (not chargeable to Highways),Environmental,Employees,Indirect Employee Expenses,Agency Staff - Waged Posts,03/09/2020,312146,413.59,24-7 Staffing
Environmental & Regulatory,Waste management,Environmental,Employees,Indirect Employee Expenses,Agency Staff - Waged Posts,03/09/2020,312146,2679.7,24-7 Staffing
Environmental & Regulatory,Waste management,Environmental,Employees,Indirect Employee Expenses,Agency Staff - Waged Posts,03/09/2020,312146,731.96,24-7 Staffing
Cultural & Related,Recreation & Sport,Community and Leisure ,Supplies & Services,Services,Professional Fees,10/09/2020,312330,3900,Blake Morgan
Central Services to the Public,Management & Support Services,HR Services,Third Party Payments,Other Local Authorities,Shared Service Contract Costs,24/09/2020,313208,3999.96,Mhr International Uk Ltd
Central Services to the Public,Management & Support Services,Finance,Supplies & Services,Grants & Subscriptions,Grants,03/09/2020,312371,5000,Clearwater Angling Solutions Limited
Central Services to the Public,Management & Support Services,Finance,Supplies & Services,Grants & Subscriptions,Grants,03/09/2020,312373,5000,People Shaped Marketing Ltd
Housing Services,Homelessness,Housing and Environmental Health ,Supplies & Services,Grants & Subscriptions,Grants,10/09/2020,312349,5000,Two Saints Housing Association Ltd
Planning & Development,Planning Policy,Plan Pol & Transport,Supplies & Services,Services,Professional Fees,24/09/2020,313254,4172.25,Land Use Consultants Ltd
"Highways, Roads & Transport",Parking Services,Plan Pol & Transport,Transport Related Costs,Management Fee,Car Park charges,17/09/2020,313040,4403.84,Park Now Limited
Environmental & Regulatory,Regulatory Services,Housing and Environmental Health ,Supplies & Services,Grants and subscriptions,Capital Grants,17/09/2020,313239,5346.96,Nhp (Romsey) Ltd
Cultural & Related,Recreation & Sport,Community and Leisure ,Premises related Expenditure,Grounds Maintenance Costs,Gm - Additional Works,10/09/2020,312715,1855.5,Stonbury Ltd
Cultural & Related,Open Spaces,Community and Leisure ,Premises related Expenditure,Grounds Maintenance Costs,Gm - Additional Works,10/09/2020,312715,2672.85,Stonbury Ltd
Environmental & Regulatory,Regulatory Services,Housing and Environmental Health ,Supplies & Services,Grants and subscriptions,Capital Grants,10/09/2020,312842,5577.25,Personal Data - Data Protection Act 1998
Planning & Development,Planning Policy,Plan Pol & Transport,Supplies & Services,Services,Project Consultancy - Policy,03/09/2020,312198,4727.37,Trevor Roberts Associates
Central Services to the Public,Management & Support Services,Premises & Asset Management,Third Party Payments,Other Establishments,Private Contractors,03/09/2020,312180,5000,Merryhill Envirotec Ltd
Central Services,Corporate & Democratic Core,Corporate & Democratic,Supplies & Services,Services,Legal Fees,03/09/2020,311800,6000,Radcliffe Chambers
Central Services to the Public,Local Land Charges,Legal & Democratic,Supplies & Services,Miscellaneous Expenses,Land Charges Fees,03/09/2020,311815,5080,Hampshire County Council
Environmental & Regulatory,Regulatory Services,Housing and Environmental Health ,Supplies & Services,Grants and subscriptions,Capital Grants,24/09/2020,313752,6432,Epw Construction Ltd
Cultural & Related,Recreation & Sport,Community and Leisure ,Premises related Expenditure,Repairs Alterations & Maintenance of Buildings,Estates premises costs - AMP,17/09/2020,312238,5398.24,Ministry Of Play Ltd
Central Services,Corporate & Democratic Core,Corporate & Democratic,Supplies & Services,Services,Professional Advice,10/09/2020,311583,5616,Dc Commercial Solicitors
Environmental & Regulatory,Regulatory Services,Housing and Environmental Health ,Supplies & Services,Grants and subscriptions,Capital Grants,17/09/2020,313318,7115.86,Personal Data - Data Protection Act 1998
Central Services to the Public,Management & Support Services,IT,Supplies & Services,Communications & Computing,Software Maintenance,03/09/2020,312327,5940,Winchester City Council
Central Services to the Public,Elections,Legal & Democratic,Supplies & Services,"Printing, Stationery & General Office Expenses",External Printing,17/09/2020,312763,5973.86,Financial Data Management Plc
Central Services to the Public,Management & Support Services,IT,Employees,Indirect Employee Expenses,Recruitment Consultants,24/09/2020,313665,6160,Precision Resource Group
Central Services to the Public,Management & Support Services,Finance,Supplies & Services,Grants & Subscriptions,Grants,24/09/2020,313780,7500,Emphasis Ltd
Central Services to the Public,Management & Support Services,IT,Supplies & Services,Communications & Computing,Software Maintenance,17/09/2020,313048,6500,Getmapping Plc
Central Services to the Public,Management & Support Services,Environmental,Transport Related Expenditure,Direct Transport Costs,Diesel,24/09/2020,313484,6755.24,Wp Group Limited
Environmental & Regulatory,Waste & Recycling Management,Environmental,Transport Related Expenditure,Direct Transport Costs,Tyres,17/09/2020,312588,660.02,Tructyre Ats
Environmental & Regulatory,Waste management,Environmental,Transport Related Expenditure,Direct Transport Costs,Tyres,17/09/2020,312588,5826.78,Tructyre Ats
Central Services to the Public,Management & Support Services,Environmental,Transport Related Expenditure,Direct Transport Costs,Repair Materials,17/09/2020,312588,641,Tructyre Ats
Cultural & Related,Recreation & Sport,Community and Leisure ,Supplies & Services,Grants and subscriptions,Capital Grants,24/09/2020,313788,8948.4,Ampfield Parish Council
Planning & Development,Planning Policy,Plan Pol & Transport,Supplies & Services,Services,Project Consultancy - Policy,24/09/2020,313533,7788.68,Portsmouth City Council
Environmental & Regulatory,Street Cleansing (not chargeable to Highways),Environmental,Supplies & Services,"Equipment, Furniture & Materials",Maintenance Equip + Materials,17/09/2020,312171,7800,Imperial Polythene Products Ltd
Central Services to the Public,Management & Support Services,Finance,Supplies & Services,Grants & Subscriptions,Grants,03/09/2020,311366,10000,Nelson Plant Hire Ltd
Central Services to the Public,Management & Support Services,Finance,Supplies & Services,Grants & Subscriptions,Grants,03/09/2020,312376,10000,Ukcs Management Ltd
Environmental & Regulatory,Regulatory Services,Housing and Environmental Health ,Supplies & Services,Grants and subscriptions,Capital Grants,17/09/2020,313325,10020,Liftech Systems (Se) Ltd
Environmental & Regulatory,Waste & Recycling Management,Environmental,Supplies & Services,"Equipment, Furniture & Materials",Purchase Equip + Materials,03/09/2020,308427,10125,Carbery Plastics
Environmental & Regulatory,Regulatory Services,Housing and Environmental Health ,Supplies & Services,Grants and subscriptions,Capital Grants,17/09/2020,313233,10610.2,Wessex Lift Co Ltd
Central Services to the Public,Management & Support Services,Environmental,Transport Related Expenditure,Direct Transport Costs,Diesel,17/09/2020,312804,8924,Wp Group Limited
Housing Services,Homelessness,Housing and Environmental Health ,Supplies & Services,Grants & Subscriptions,Grants,10/09/2020,312350,10736,Two Saints Housing Association Ltd
Cultural & Related,Recreation & Sport,Community and Leisure ,Supplies & Services,Grants and subscriptions,Capital Grants,17/09/2020,313326,11033.93,Longparish Parish Council
Housing services,"Housing strategy, advice and enabling",Housing and Environmental Health ,Supplies & Services,Services,Property Acquisition,03/09/2020,312359,11100,Hmrc
Central Services to the Public,Management & Support Services,Environmental,Transport Related Expenditure,Direct Transport Costs,Diesel,10/09/2020,311817,10601.85,Wp Group Limited
Central Services to the Public,Management & Support Services,Estates and Economic Development ,Third Party Payments,Private contractors,Main Contractor Costs,17/09/2020,312239,13836.2,Ministry Of Play Ltd
Central Services,Corporate & Democratic Core,Corporate & Democratic,Supplies & Services,Services,Professional Fees,17/09/2020,313097,15000,Hemingwaydesign
Central Services,Corporate & Democratic Core,Corporate & Democratic,Supplies & Services,Services,Professional Fees,17/09/2020,313312,15280,Hemingwaydesign
Cultural & Related,Regulatory Services,Community and Leisure ,Third Party Payments,Private contractors,Main Contractor Costs,24/09/2020,313786,20520,Valley Park Community Association
Environmental & Regulatory,Regulatory Services,Housing and Environmental Health ,Supplies & Services,Grants and subscriptions,Capital Grants,17/09/2020,313232,20925.25,Wessex Lift Co Ltd
Central Services to the Public,Management & Support Services,Revenues,Supplies & Services,Communications & Computing,Computer Software,03/09/2020,312178,17995,Abavus Limited
Cultural & Related,Recreation & Sport,Community and Leisure ,Supplies & Services,Grants and subscriptions,Capital Grants,10/09/2020,312838,23500,Wellow Parish Council
Cultural & Related,Regulatory Services,Community and Leisure ,Third Party Payments,Private contractors,Main Contractor Costs,24/09/2020,313772,32594,Ampfield Parish Council
Central Services,Corporate & Democratic Core,Corporate & Democratic,Supplies & Services,Services,Professional Fees,17/09/2020,313313,34068.5,Hemingwaydesign
Central Services to the Public,Management & Support Services,Estates and Economic Development ,Third Party Payments,Private contractors,Main Contractor Costs,03/09/2020,312344,35419.32,Corrigenda Ltd
Housing Services,Homelessness,Housing and Environmental Health ,Supplies & Services,Grants & Subscriptions,Grants,10/09/2020,312351,51613,Two Saints Housing Association Ltd
External Trading Accounts,Business Parks,Premises & Asset Management,Supplies & Services,Services,Professional Fees,10/09/2020,312224,45870.11,Kier Ventures Ltd
Central Services to the Public,Management & Support Services,IT,Supplies & Services,Communications & Computing,Software Maintenance,03/09/2020,311831,32039.63,Idox Software Ltd
Environmental & Regulatory,Community Development,Community and Leisure ,Supplies & Services,Communications & Computing,Software Maintenance,03/09/2020,311831,1367.98,Idox Software Ltd
Planning & Development,Development Control,Planning & Building,Supplies & Services,Communications & Computing,Software Maintenance,03/09/2020,311831,45390.71,Idox Software Ltd
Planning & Development,Building Control,Planning & Building,Supplies & Services,Communications & Computing,Software Maintenance,03/09/2020,311831,10367.89,Idox Software Ltd
